[Event "RUS-chT Premier 2021"]
[White "Yuffa,Daniil"]
[Black "Askerov,Marat"]
[WhiteTeam "Wildberries Молодёжка"]
[BlackTeam "СШОР"]
[Site "Sochi"]
[Round "5.17"]
[Annotator "ChessBase"]
[Result "1/2-1/2"]
[Date "2021.05.05"]
[WhiteElo "2584"]
[BlackElo "2353"]
[PlyCount "83"]
[TimeControl "60"]

1. g3 {[%emt 0:0:0]} d5 {[%emt 0:0:44]} 2. Nf3 {[%emt 0:0:0]} Bg4 {[%emt 0:0:51]
} 3. Ne5 {[%emt 0:3:23]} Bf5 {[%emt 0:4:16]} 4. c4 {[%emt 0:0:0]} Nd7 {[%emt 0:19:2]} 5. Nxd7 {[%emt 0:3:11]} Qxd7 {[%emt 0:0:2]} 6. Qb3 {[%emt 0:3:53]} 0-0-0 {[%emt 0:11:26]} 7. Nc3 {[%emt 0:7:46]} d4 {[%emt 0:0:0]} 8. Bg2 {[%emt 0:3:10]} c6 {[%emt 0:0:48]} 9. Ne4 {[%emt 0:4:56]} e5 {[%emt 0:1:22]
} 10. d3 {[%emt 0:1:22]} Bh3 {[%emt 0:5:1]} 11. Bxh3 {[%emt 0:0:0]} Qxh3 {[%emt 0:0:2]} 12. Qa4 {[%emt 0:3:12]} a6 {[%emt 0:8:30]} 13. Qa5 {[%emt 0:3:15]} Nf6 {[%emt 0:4:26]} 14. Bg5 {[%emt 0:8:53]} Qe6 {[%emt 0:3:31]
} 15. b4 {[%emt 0:5:20]} Be7 {[%emt 0:7:56]} 16. Bxf6 {[%emt 0:0:0]} gxf6 {[%emt 0:0:6]} 17. b5 {[%emt 0:8:51]} axb5 {[%emt 0:10:45]} 18. cxb5 {[%emt 0:0:35]} Qd5 {[%emt 0:0:42]} 19. Qa8+ {[%emt 0:0:30]} Kc7 {[%emt 0:0:48]
} 20. Qa5+ {[%emt 0:3:43]} Kb8 {[%emt 0:2:24]} 21. 0-0 {[%emt 0:1:17]
} f5 {[%emt 0:1:36]} 22. Nd2 {[%emt 0:1:40]} Qxb5 {[%emt 0:0:0]} 23. Qxb5 {[%emt 0:4:51]} cxb5 {[%emt 0:0:2]} 24. a3 {[%emt 0:4:58]} Rd5 {[%emt 0:2:49]} 25. Ra2 {[%emt 0:1:18]} Rc8 {[%emt 0:0:26]} 26. Rb1 {[%emt 0:0:57]
} Rc3 {[%emt 0:1:9]} 27. Rab2 {[%emt 0:0:37]} Bg5 {[%emt 0:0:0]} 28. f4 {[%emt 0:1:56]} exf4 {[%emt 0:0:52]} 29. Nf3 {[%emt 0:0:3]} Bh6 {[%emt 0:0:45]} 30. Rxb5 {[%emt 0:2:34]} Rxb5 {[%emt 0:0:43]} 31. Rxb5 {[%emt 0:0:3]
} fxg3 {[%emt 0:0:8]} 32. hxg3 {[%emt 0:0:19]} Rxa3 {[%emt 0:0:0]} 33. Rxf5 {[%emt 0:0:30]} Be3+ {[%emt 0:0:30]} 34. Kg2 {[%emt 0:0:31]
} Ra2 {[%emt 0:0:9]} 35. Kf1 {[%emt 0:0:24]} Ra1+ {[%emt 0:0:10]} 36. Kg2 {[%emt 0:0:3]
} Ra2 {[%emt 0:0:3]} 37. Kf1 {[%emt 0:0:15]} h6 {[%emt 0:0:0]} 38. Rxf7 {[%emt 0:0:19]} Ra1+ {[%emt 0:0:18]} 39. Kg2 {[%emt 0:0:4]} Ra2 {[%emt 0:0:4]} 40. Kf1 {[%emt 0:0:0]} Ra1+ {[%emt 0:0:0]} 41. Kg2 {[%emt 0:0:31]
} Ra2 {[%emt 0:9:5]} 42. Kf1 {[%emt 0:0:15]} 1/2-1/2

[Event "RUS-chT Premier 2021"]
[White "Saveliev,Alexei"]
[Black "Kryakvin,Dmitry"]
[WhiteTeam "СШОР"]
[BlackTeam "Wildberries Молодёжка"]
[Site "Sochi"]
[Round "5.18"]
[Annotator "ChessBase"]
[Result "1-0"]
[Date "2021.05.05"]
[WhiteElo "2358"]
[BlackElo "2577"]
[PlyCount "105"]
[TimeControl "60"]

1. e4 {[%emt 0:0:0]} e5 {[%emt 0:0:0]} 2. Nf3 {[%emt 0:0:0]} Nf6 {[%emt 0:0:3]
} 3. Nxe5 {[%emt 0:1:36]} d6 {[%emt 0:0:24]} 4. Nf3 {[%emt 0:0:0]} Nxe4 {[%emt 0:0:15]} 5. Qe2 {[%emt 0:1:37]} Qe7 {[%emt 0:1:5]} 6. d3 {[%emt 0:0:6]} Nf6 {[%emt 0:3:4]} 7. Bg5 {[%emt 0:0:27]} Nbd7 {[%emt 0:0:0]} 8. c4 {[%emt 0:3:48]} h6 {[%emt 0:5:47]} 9. Be3 {[%emt 0:11:1]} Ng4 {[%emt 0:2:27]} 10. Bd2 {[%emt 0:1:30]} Nc5 {[%emt 0:10:0]} 11. Qxe7+ {[%emt 0:7:54]
} Bxe7 {[%emt 0:0:5]} 12. b4 {[%emt 0:5:23]} Bf6 {[%emt 0:0:0]} 13. Nc3 {[%emt 0:0:40]} Na4 {[%emt 0:0:56]} 14. d4 {[%emt 0:3:3]} Nxc3 {[%emt 0:0:7]} 15. Bxc3 {[%emt 0:0:3]} h5 {[%emt 0:2:35]} 16. h3 {[%emt 0:0:0]} Nh6 {[%emt 0:0:15]} 17. Bd3 {[%emt 0:0:5]} Bf5 {[%emt 0:9:59]} 18. Kd2 {[%emt 0:0:14]} Kd7 {[%emt 0:6:22]} 19. a4 h4 20. Rhe1 {[%emt 0:8:50]} g5 {[%emt 0:8:38]} 21. Bxf5+ {[%emt 0:5:5]} Nxf5 {[%emt 0:0:4]} 22. d5 {[%emt 0:0:18]
} Bxc3+ {[%emt 0:1:0]} 23. Kxc3 {[%emt 0:23:10]} Rhg8 {[%emt 0:0:0]} 24. Re4 {[%emt 0:0:5]} Rae8 {[%emt 0:2:33]} 25. Rae1 {[%emt 0:0:49]
} Rxe4 {[%emt 0:1:52]} 26. Rxe4 {[%emt 0:0:2]} f6 {[%emt 0:5:1]} 27. Nd4 {[%emt 0:3:10]
} Nxd4 {[%emt 0:5:49]} 28. Kxd4 {[%emt 0:0:6]} f5 {[%emt 0:0:0]} 29. Re6 {[%emt 0:0:18]} Re8 {[%emt 0:0:12]} 30. Rf6 {[%emt 0:5:28]} Re5 {[%emt 0:1:28]} 31. Rf7+ {[%emt 0:1:34]} Kd8 {[%emt 0:0:4]} 32. a5 {[%emt 0:2:17]
} a6 {[%emt 0:1:0]} 33. Kd3 {[%emt 0:3:45]} g4 {[%emt 0:3:29]
} 34. f4 {[%emt 0:7:6]} Re1 {[%emt 0:2:22]} 35. Rxf5 {[%emt 0:0:3]} gxh3 {[%emt 0:0:21]
} 36. gxh3 {[%emt 0:0:6]} Rh1 {[%emt 0:0:28]} 37. Rh5 {[%emt 0:0:49]
} Rxh3+ {[%emt 0:0:5]} 38. Ke4 {[%emt 0:1:7]} Rh1 {[%emt 0:0:0]} 39. Rh8+ {[%emt 0:1:9]} Kd7 {[%emt 0:0:45]} 40. Rh7+ {[%emt 0:0:0]
} Kd8 {[%emt 0:0:0]} 41. Kf5 {[%emt 0:3:6]} Rc1 {[%emt 0:7:27]} 42. c5 {[%emt 0:1:17]
} dxc5 {[%emt 0:12:24]} 43. bxc5 {[%emt 0:0:9]} Rd1 {[%emt 0:0:0]} 44. Ke6 {[%emt 0:15:22]} Re1+ {[%emt 0:0:28]} 45. Kf6 {[%emt 0:0:4]} Rd1 {[%emt 0:0:59]} 46. f5 {[%emt 0:2:0]} Rd4 {[%emt 0:9:29]} 47. Ke5 {[%emt 0:1:18]
} Rc4 {[%emt 0:1:11]} 48. f6 {[%emt 0:0:43]} Ke8 {[%emt 0:0:0]} 49. Rxc7 {[%emt 0:0:45]} h3 {[%emt 0:0:15]} 50. Rh7 {[%emt 0:0:25]} Rc3 {[%emt 0:0:6]} 51. Rxb7 {[%emt 0:0:48]} Re3+ {[%emt 0:1:23]} 52. Kd6 {[%emt 0:0:15]
} Rf3 {[%emt 0:0:4]} 53. Ke5 {[%emt 0:2:22]} 1-0

[Event "RUS-chT Premier 2021"]
[White "Petrov,Nikita"]
[Black "Truskavetsky,Alexandr"]
[WhiteTeam "Школа М. Ботвинника"]
[BlackTeam "Киммерия"]
[Site "Sochi"]
[Round "5.19"]
[Annotator "ChessBase"]
[Result "1/2-1/2"]
[Date "2021.05.05"]
[WhiteElo "2567"]
[BlackElo "2387"]
[PlyCount "86"]
[TimeControl "60"]

1. e4 {[%emt 0:0:0]} c5 {[%emt 0:0:0]} 2. Nf3 {[%emt 0:0:0]} Nc6 {[%emt 0:0:5]
} 3. Bb5 {[%emt 0:0:16]} e6 {[%emt 0:0:23]} 4. Bxc6 {[%emt 0:0:0]} bxc6 {[%emt 0:0:7]} 5. d3 {[%emt 0:0:6]} Ne7 {[%emt 0:0:19]} 6. Nbd2 {[%emt 0:0:54]} d6 {[%emt 0:1:38]} 7. e5 {[%emt 0:0:14]} d5 {[%emt 0:0:0]} 8. b3 {[%emt 0:6:34]} h5 {[%emt 0:8:9]} 9. h4 {[%emt 0:11:18]} Nf5 {[%emt 0:0:11]
} 10. Bb2 {[%emt 0:10:18]} Be7 {[%emt 0:16:21]} 11. g3 {[%emt 0:0:0]} c4 {[%emt 0:0:13]} 12. dxc4 {[%emt 0:1:33]} Ba6 {[%emt 0:0:52]} 13. Nd4 {[%emt 0:13:26]} Nxd4 {[%emt 0:20:28]} 14. Bxd4 {[%emt 0:0:6]} dxc4 {[%emt 0:0:4]
} 15. Nxc4 {[%emt 0:0:25]} Qd5 {[%emt 0:1:21]} 16. 0-0 {[%emt 0:0:19]
} Bxc4 {[%emt 0:18:3]} 17. bxc4 {[%emt 0:0:5]} Qxc4 {[%emt 0:0:0]} 18. Qd3 {[%emt 0:14:33]} Qxd3 {[%emt 0:1:45]} 19. cxd3 {[%emt 0:0:4]
} Kd7 {[%emt 0:14:14]} 20. Rfb1 {[%emt 0:11:26]} Kc7 {[%emt 0:0:41]} 21. Rc1 {[%emt 0:0:5]
} Rhb8 {[%emt 0:2:10]} 22. Rc3 {[%emt 0:2:3]} a5 {[%emt 0:0:0]} 23. Rac1 {[%emt 0:1:45]} Ra6 {[%emt 0:0:7]} 24. a4 {[%emt 0:2:26]} Rb4 {[%emt 0:2:56]} 25. Rc4 {[%emt 0:0:25]} Rxc4 {[%emt 0:1:12]} 26. Rxc4 {[%emt 0:0:46]
} Bb4 {[%emt 0:6:15]} 27. Be3 {[%emt 0:7:9]} Kd7 {[%emt 0:0:0]} 28. g4 {[%emt 0:6:37]} g6 {[%emt 0:0:12]} 29. gxh5 {[%emt 0:2:48]} gxh5 {[%emt 0:0:2]} 30. Bc5 {[%emt 0:2:13]} Bxc5 {[%emt 0:1:7]} 31. Rxc5 {[%emt 0:0:2]
} Ra8 {[%emt 0:0:25]} 32. f3 {[%emt 0:1:17]} Kc7 {[%emt 0:0:0]} 33. Kf2 {[%emt 0:0:11]} Kb6 {[%emt 0:1:6]} 34. Rc4 {[%emt 0:0:45]} Rd8 {[%emt 0:0:10]} 35. Ke3 {[%emt 0:4:15]} Rd5 {[%emt 0:0:10]} 36. Ke4 {[%emt 0:1:17]
} c5 {[%emt 0:1:0]} 37. f4 {[%emt 0:0:25]} Kc6 {[%emt 0:0:19]
} 38. Ke3 {[%emt 0:0:37]} Rd8 {[%emt 0:0:39]} 39. Ke4 {[%emt 0:0:19]} Kb6 {[%emt 0:1:58]
} 40. d4 {[%emt 0:0:0]} Rxd4+ {[%emt 0:0:0]} 41. Rxd4 {[%emt 0:1:9]
} cxd4 {[%emt 0:0:56]} 42. Kxd4 {[%emt 0:0:1]} Kc6 {[%emt 0:0:0]} 43. Kc4 {[%emt 0:0:45]} Kb6 {[%emt 0:4:43]} 1/2-1/2

[Event "RUS-chT Premier 2021"]
[White "Musalov,Ruslan"]
[Black "Zakhartsov,Vladimir"]
[WhiteTeam "Киммерия"]
[BlackTeam "Школа М. Ботвинника"]
[Site "Sochi"]
[Round "5.20"]
[Annotator "ChessBase"]
[Result "0-1"]
[Date "2021.05.05"]
[WhiteElo "2359"]
[BlackElo "2486"]
[PlyCount "120"]
[TimeControl "60"]

1. Nf3 {[%emt 0:0:0]} Nf6 {[%emt 0:0:33]} 2. g3 {[%emt 0:0:0]} d5 {[%emt 0:2:56]
} 3. Bg2 {[%emt 0:0:0]} g6 {[%emt 0:6:3]} 4. 0-0 {[%emt 0:0:0]} Bg7 {[%emt 0:0:7]} 5. c4 {[%emt 0:3:4]} c6 {[%emt 0:5:21]} 6. cxd5 {[%emt 0:5:41]
} cxd5 {[%emt 0:0:9]} 7. Qa4+ {[%emt 0:0:16]} Nbd7 {[%emt 0:0:0]} 8. Nc3 {[%emt 0:2:1]} 0-0 {[%emt 0:0:30]} 9. d4 {[%emt 0:2:42]} Nb6 {[%emt 0:3:39]} 10. Qb3 {[%emt 0:4:41]} Nc4 {[%emt 0:1:40]} 11. Bf4 {[%emt 0:7:27]
} e6 {[%emt 0:9:44]} 12. Rfd1 {[%emt 0:4:42]} a6 {[%emt 0:0:0]} 13. Ne5 {[%emt 0:4:31]} b5 {[%emt 0:3:24]} 14. a4 {[%emt 0:6:4]} Nh5 {[%emt 0:2:23]
} 15. Bc1 {[%emt 0:12:0]} bxa4 {[%emt 0:8:36]} 16. Rxa4 {[%emt 0:3:50]
} Nxe5 {[%emt 0:4:10]} 17. dxe5 {[%emt 0:0:3]} Bxe5 {[%emt 0:0:0]} 18. e4 {[%emt 0:34:59]} Bd7 {[%emt 0:3:35]} 19. exd5 {[%emt 0:0:12]} Bxa4 {[%emt 0:0:37]} 20. Qxa4 {[%emt 0:0:20]} Qe8 {[%emt 0:2:24]} 21. d6 {[%emt 0:1:8]
} Qxa4 {[%emt 0:3:57]} 22. Nxa4 {[%emt 0:0:7]} Rab8 {[%emt 0:0:0]} 23. f4 {[%emt 0:4:52]} Bf6 {[%emt 0:0:26]} 24. Nc5 {[%emt 0:0:27]} Rb4 {[%emt 0:3:24]} 25. Be3 {[%emt 0:0:28]} Rd8 {[%emt 0:2:10]} 26. d7 {[%emt 0:1:13]
} Rxb2 {[%emt 0:1:4]} 27. Nb7 {[%emt 0:0:32]} Rb8 {[%emt 0:0:0]} 28. Bd4 {[%emt 0:0:48]} R2xb7 {[%emt 0:1:14]} 29. Bxb7 {[%emt 0:0:14]} Bxd4+ {[%emt 0:0:2]} 30. Rxd4 {[%emt 0:0:2]} Rd8 {[%emt 0:0:4]} 31. Bxa6 {[%emt 0:0:20]} Nf6 {[%emt 0:0:13]} 32. Bb5 {[%emt 0:0:21]} Kf8 {[%emt 0:0:0]} 33. Kg2 {[%emt 0:0:34]} Ke7 {[%emt 0:0:7]} 34. Ra4 {[%emt 0:0:29]} Rb8 {[%emt 0:1:38]} 35. Bc6 {[%emt 0:0:32]} Kd6 {[%emt 0:1:12]} 36. Ra6 {[%emt 0:0:41]
} Nxd7 {[%emt 0:0:57]} 37. Bxd7+ {[%emt 0:0:15]} Kxd7 {[%emt 0:0:0]} 38. Ra7+ {[%emt 0:0:2]} Ke8 {[%emt 0:0:7]} 39. Kf3 {[%emt 0:1:53]} Rb3+ {[%emt 0:0:38]} 40. Ke4 {[%emt 0:0:0]} Kf8 {[%emt 0:0:0]} 41. Ra2 {[%emt 0:14:23]
} h6 {[%emt 0:3:23]} 42. Rc2 {[%emt 0:1:3]} Kg7 {[%emt 0:0:0]} 43. Ra2 {[%emt 0:0:14]} f5+ {[%emt 0:3:36]} 44. Ke5 {[%emt 0:10:1]} Re3+ {[%emt 0:0:12]} 45. Kd6 {[%emt 0:0:5]} Kf6 {[%emt 0:0:32]} 46. Kd7 {[%emt 0:0:11]
} Rd3+ {[%emt 0:1:33]} 47. Ke8 {[%emt 0:0:8]} g5 {[%emt 0:0:0]} 48. Ra7 {[%emt 0:0:20]} gxf4 {[%emt 0:3:40]} 49. gxf4 {[%emt 0:0:29]} Rd4 {[%emt 0:0:19]} 50. Rf7+ {[%emt 0:1:3]} Kg6 {[%emt 0:0:3]} 51. Ke7 {[%emt 0:0:43]
} Rxf4 {[%emt 0:0:11]} 52. Rf6+ {[%emt 0:0:7]} Kg5 {[%emt 0:0:0]} 53. Kxe6 {[%emt 0:0:4]} Re4+ {[%emt 0:0:8]} 54. Kf7 {[%emt 0:0:2]
} f4 {[%emt 0:5:21]} 55. Rg6+ {[%emt 0:3:12]} Kf5 {[%emt 0:0:49]} 56. Rxh6 {[%emt 0:0:53]
} f3 {[%emt 0:0:13]} 57. Rf6+ {[%emt 0:1:28]} Kg4 {[%emt 0:0:0]} 58. Rg6+ {[%emt 0:0:6]} Kf4 {[%emt 0:1:39]} 59. h4 {[%emt 0:2:6]} Re5 {[%emt 0:0:55]} 60. Rg1 {[%emt 0:1:14]} Rh5 {[%emt 0:0:5]} 0-1

[Event "RUS-chT Premier 2021"]
[White "Makarian,Rudik"]
[Black "Alexeev,Alexey"]
[WhiteTeam "Школа М. Ботвинника"]
[BlackTeam "Киммерия"]
[Site "Sochi"]
[Round "5.21"]
[Annotator "ChessBase"]
[Result "1-0"]
[Date "2021.05.05"]
[WhiteElo "2468"]
[BlackElo "2243"]
[PlyCount "107"]
[TimeControl "60"]

1. d4 {[%emt 0:0:0]} d5 {[%emt 0:0:0]} 2. c4 {[%emt 0:0:0]} c6 {[%emt 0:0:0]} 3. Nf3 {[%emt 0:0:0]} Nf6 {[%emt 0:0:0]} 4. Nc3 {[%emt 0:0:0]} dxc4 {[%emt 0:0:2]} 5. a4 {[%emt 0:0:0]} Bf5 {[%emt 0:0:9]} 6. Ne5 {[%emt 0:0:0]
} Nbd7 {[%emt 0:0:14]} 7. Nxc4 {[%emt 0:0:0]} Qc7 {[%emt 0:0:0]} 8. g3 {[%emt 0:0:10]} e5 {[%emt 0:0:17]} 9. dxe5 {[%emt 0:0:4]} Nxe5 {[%emt 0:0:7]
} 10. Bf4 {[%emt 0:0:4]} Nfd7 {[%emt 0:0:12]} 11. Bg2 {[%emt 0:0:47]
} g5 {[%emt 0:0:17]} 12. Bxe5 {[%emt 0:0:14]} Nxe5 {[%emt 0:0:0]} 13. Qd4 {[%emt 0:0:3]} f6 {[%emt 0:0:13]} 14. 0-0 {[%emt 0:11:30]} Be6 {[%emt 0:20:1]} 15. Nxe5 {[%emt 0:0:49]} Qxe5 {[%emt 0:0:47]} 16. Qxe5 {[%emt 0:0:33]
} fxe5 {[%emt 0:0:14]} 17. a5 {[%emt 0:0:14]} a6 {[%emt 0:0:0]} 18. Ne4 {[%emt 0:31:3]} Be7 {[%emt 0:6:0]} 19. Rfc1 {[%emt 0:0:33]} 0-0-0 {[%emt 0:10:47]} 20. Nc5 {[%emt 0:4:57]} Bd5 {[%emt 0:9:49]} 21. Ra4 {[%emt 0:11:48]
} Kc7 {[%emt 0:13:1]} 22. Rb4 {[%emt 0:8:5]} Bxc5 {[%emt 0:0:0]} 23. Rxc5 {[%emt 0:0:16]} Rhg8 {[%emt 0:2:28]} 24. Bxd5 {[%emt 0:11:14]} Rxd5 {[%emt 0:0:7]} 25. Rxd5 {[%emt 0:0:4]} cxd5 {[%emt 0:0:7]} 26. Rb6 {[%emt 0:0:1]
} g4 {[%emt 0:9:36]} 27. Re6 {[%emt 0:3:8]} e4 {[%emt 0:1:31]
} 28. e3 {[%emt 0:0:52]} Rg7 {[%emt 0:0:31]} 29. Rf6 {[%emt 0:1:34]} Rd7 {[%emt 0:3:7]
} 30. Kf1 {[%emt 0:2:8]} d4 {[%emt 0:1:11]} 31. exd4 {[%emt 0:0:0]} Rxd4 {[%emt 0:0:7]} 32. Rf7+ {[%emt 0:1:55]} Kc6 {[%emt 0:0:35]} 33. Rxh7 {[%emt 0:0:4]} Rb4 {[%emt 0:0:40]} 34. Rg7 {[%emt 0:3:8]} Rxb2 {[%emt 0:0:9]
} 35. Rxg4 {[%emt 0:0:8]} Rb5 {[%emt 0:0:21]} 36. Rg6+ {[%emt 0:1:23]
} Kc7 {[%emt 0:1:16]} 37. h4 {[%emt 0:0:7]} Rxa5 {[%emt 0:0:0]} 38. g4 {[%emt 0:0:3]} e3 {[%emt 0:3:54]} 39. h5 {[%emt 0:1:36]} Ra1+ {[%emt 0:0:7]
} 40. Ke2 {[%emt 0:0:0]} a5 {[%emt 0:0:0]} 41. Rg5 {[%emt 0:0:0]} exf2 {[%emt 0:8:1]} 42. Kxf2 {[%emt 0:0:10]} Rh1 {[%emt 0:0:9]} 43. Kg2 {[%emt 0:0:43]} Rh4 {[%emt 0:0:31]} 44. Kg3 {[%emt 0:0:3]} Rh1 {[%emt 0:0:5]
} 45. Rxa5 {[%emt 0:0:3]} Kd6 {[%emt 0:1:7]} 46. Kf4 {[%emt 0:3:10]
} Ke7 {[%emt 0:0:37]} 47. Rb5 {[%emt 0:0:4]} Kf7 {[%emt 0:0:0]} 48. Rxb7+ {[%emt 0:0:5]} Kg8 {[%emt 0:0:29]} 49. Kg5 {[%emt 0:0:4]} Ra1 {[%emt 0:0:24]} 50. h6 {[%emt 0:0:17]} Ra5+ {[%emt 0:0:55]} 51. Kg6 {[%emt 0:0:3]
} Ra6+ {[%emt 0:0:44]} 52. Kh5 {[%emt 0:0:4]} Rc6 {[%emt 0:0:0]} 53. g5 {[%emt 0:0:5]} Ra6 {[%emt 0:0:6]} 54. Rb8+ {[%emt 0:0:9]} 1-0

[Event "RUS-chT Premier 2021"]
[White "Babakekhyan,Artem"]
[Black "Afanasiev,Nikita"]
[WhiteTeam "Киммерия"]
[BlackTeam "Школа М. Ботвинника"]
[Site "Sochi"]
[Round "5.22"]
[Annotator "ChessBase"]
[Result "0-1"]
[Date "2021.05.05"]
[WhiteElo "2214"]
[BlackElo "2529"]
[PlyCount "78"]
[TimeControl "60"]

1. Nf3 {[%emt 0:0:0]} g6 {[%emt 0:0:0]} 2. g3 {[%emt 0:0:0]} Bg7 {[%emt 0:0:0]
} 3. c4 {[%emt 0:0:24]} c5 {[%emt 0:0:41]} 4. Bg2 {[%emt 0:0:0]} Nc6 {[%emt 0:0:18]} 5. Nc3 {[%emt 0:0:16]} d6 {[%emt 0:0:16]} 6. d3 {[%emt 0:1:56]
} Bf5 {[%emt 0:1:5]} 7. 0-0 {[%emt 0:5:21]} Qc8 {[%emt 0:0:0]} 8. Rb1 {[%emt 0:2:12]} Bh3 {[%emt 0:3:21]} 9. Bxh3 {[%emt 0:7:24]} Qxh3 {[%emt 0:0:28]} 10. Nd5 {[%emt 0:0:11]} Qd7 {[%emt 0:3:36]} 11. a3 {[%emt 0:0:0]} e6 {[%emt 0:1:29]} 12. Ne3 {[%emt 0:8:49]} Nge7 {[%emt 0:2:16]} 13. b4 {[%emt 0:2:24]} 0-0 {[%emt 0:2:35]} 14. Bb2 {[%emt 0:13:3]} e5 {[%emt 0:0:0]} 15. Nd5 {[%emt 0:3:16]} Nxd5 {[%emt 0:2:4]} 16. cxd5 {[%emt 0:0:5]
} Nd4 {[%emt 0:0:10]} 17. Bxd4 {[%emt 0:1:49]} cxd4 {[%emt 0:6:33]} 18. Qb3 {[%emt 0:4:55]} Bh6 {[%emt 0:0:55]} 19. b5 {[%emt 0:16:57]} Rfc8 {[%emt 0:0:0]} 20. Rfd1 {[%emt 0:2:48]} Rc3 {[%emt 0:0:49]} 21. Qb4 {[%emt 0:1:13]} Rac8 {[%emt 0:2:15]} 22. Rb3 {[%emt 0:11:18]} R3c5 {[%emt 0:2:12]} 23. Kg2 {[%emt 0:4:15]
} Rxd5 {[%emt 0:0:18]} 24. Nd2 {[%emt 0:0:18]} Bxd2 {[%emt 0:0:0]} 25. Rxd2 {[%emt 0:0:8]} h5 {[%emt 0:0:58]} 26. h4 {[%emt 0:0:9]} Kg7 {[%emt 0:1:52]} 27. a4 {[%emt 0:0:34]} f5 {[%emt 0:0:51]} 28. Rbb2 {[%emt 0:4:19]
} Rdc5 {[%emt 0:0:17]} 29. e3 {[%emt 0:1:30]} dxe3 {[%emt 0:0:0]} 30. fxe3 {[%emt 0:0:2]} b6 {[%emt 0:0:7]} 31. Qb3 {[%emt 0:0:47]} Qb7+ {[%emt 0:0:12]} 32. Kh2 {[%emt 0:0:4]} Rc1 {[%emt 0:1:4]} 33. Rg2 {[%emt 0:0:31]
} Qf7 {[%emt 0:10:10]} 34. Qb4 {[%emt 0:1:14]} Qd5 {[%emt 0:0:0]} 35. e4 {[%emt 0:1:22]} Qxd3 {[%emt 0:6:26]} 36. exf5 {[%emt 0:0:59]} Qf1 {[%emt 0:0:25]} 37. f6+ {[%emt 0:0:7]} Kh7 {[%emt 0:0:14]} 38. Kh3 {[%emt 0:0:37]
} R8c2 {[%emt 0:0:13]} 39. Qe4 {[%emt 0:3:15]} Qh1+ {[%emt 0:0:0]} 0-1

[Event "RUS-chT Premier 2021"]
[White "Kukhmazov,Arsen"]
[Black "Pervakov,Sergey"]
[WhiteTeam "Школа М. Ботвинника"]
[BlackTeam "Киммерия"]
[Site "Sochi"]
[Round "5.23"]
[Annotator "ChessBase"]
[Result "1-0"]
[Date "2021.05.05"]
[WhiteElo "2451"]
[BlackElo "2056"]
[PlyCount "51"]
[TimeControl "60"]

1. d4 {[%emt 0:0:0]} d5 {[%emt 0:0:0]} 2. c4 {[%emt 0:0:0]} c6 {[%emt 0:0:0]} 3. Nf3 {[%emt 0:0:0]} Nf6 {[%emt 0:0:0]} 4. Nc3 {[%emt 0:0:0]} dxc4 {[%emt 0:0:1]} 5. a4 {[%emt 0:0:0]} Bf5 {[%emt 0:0:15]} 6. Ne5 {[%emt 0:0:9]
} Nbd7 {[%emt 0:0:26]} 7. Nxc4 {[%emt 0:0:5]} Qc7 {[%emt 0:0:0]} 8. g3 {[%emt 0:0:20]} e5 {[%emt 0:0:25]} 9. dxe5 {[%emt 0:0:13]} Nxe5 {[%emt 0:0:7]
} 10. Bf4 {[%emt 0:0:2]} Nfd7 {[%emt 0:0:7]} 11. Qc1 {[%emt 0:0:21]
} Be6 {[%emt 0:15:21]} 12. Nxe5 {[%emt 0:3:13]} Nxe5 {[%emt 0:0:0]} 13. Bg2 {[%emt 0:0:40]} Qa5 {[%emt 0:16:6]} 14. 0-0 {[%emt 0:0:52]} Be7 {[%emt 0:11:35]} 15. Nb5 {[%emt 0:5:46]} cxb5 {[%emt 0:12:44]} 16. Bxe5 {[%emt 0:0:12]
} Rc8 {[%emt 0:6:1]} 17. Qe3 {[%emt 0:1:5]} 0-0 {[%emt 0:0:0]} 18. Bxb7 {[%emt 0:1:6]} Rc5 {[%emt 0:4:26]} 19. Bd4 {[%emt 0:5:28]} Rc4 {[%emt 0:6:24]} 20. axb5 {[%emt 0:0:36]} Qc7 {[%emt 0:3:24]} 21. Bc6 {[%emt 0:0:53]
} a5 {[%emt 0:7:40]} 22. Bb6 {[%emt 0:0:25]} Qd6 {[%emt 0:0:0]} 23. Bxa5 {[%emt 0:1:27]} Bf6 {[%emt 0:0:22]} 24. Rad1 {[%emt 0:0:57]} Bd4 {[%emt 0:1:11]} 25. b3 {[%emt 0:4:41]} Qc5 {[%emt 0:2:44]} 26. Qd3 {[%emt 0:1:46]
} 1-0